bitfinex/quotes_SOLUSD_20251212
["timestamp","ask_amount","ask_price","bid_price","bid_amount"]
[1765567695511,0.72,131.96,131.93,0.72]
[1765567695719,12.15717457,131.95,131.91,9.02]
[1765567695898,8.80994492,131.95,131.92,0.72]
[1765567696209,12.15717457,131.93,131.91,8.3]
[1765567696379,7.58035172,131.92,131.91,8.3]
[1765567696904,7.57972469,131.94,131.91,9.02]
[1765567697112,7.57972469,131.94,131.92,0.72]
[1765567697985,7.57972469,131.94,131.91,8.3]
[1765567698186,7.57972469,131.94,131.91,8.98]
[1765567698382,12.82717457,131.93,131.88,0.68]
[1765567699199,12.15717457,131.93,131.88,0.68]
[1765567699505,0.67,131.92,131.88,0.68]
[1765567700297,8.25087604,131.92,131.88,8.26264101]
[1765567700486,8.25087604,131.92,131.88,0.68]
[1765567701199,8.80994492,131.91,131.88,0.68]
[1765567701975,27.21175536,131.92,131.88,0.68]
[1765567704902,27.21175536,131.92,131.88,4.02722965]
[1765567705283,27.21175536,131.92,131.89,0.71]
[1765567705686,9.48994492,131.91,131.87,0.81]
[1765567705907,9.48994492,131.91,131.87,4.15722965]
[1765567706079,9.48994492,131.91,131.88,0.71]
[1765567706391,9.48994492,131.91,131.87,0.1]
[1765567706598,9.48994492,131.91,131.88,0.71]
[1765567706975,7.58150113,131.9,131.88,0.71]
[1765567707808,7.58150113,131.9,131.87,0.1]
[1765567708103,7.58150113,131.9,131.88,0.71]
[1765567708308,7.58150113,131.9,131.87,0.81]
[1765567709814,3.34722965,131.88,131.87,0.1]
[1765567710188,4.02722965,131.88,131.87,0.1]
[1765567710387,11.60988054,131.88,131.87,0.1]
[1765567710899,20.41982546,131.88,131.87,0.1]
[1765567711609,20.42490665,131.88,131.87,0.1]
[1765567712723,33.47199785,131.88,131.87,0.1]
[1765567713289,29.43968701,131.88,131.87,0.1]
[1765567713618,3.35231084,131.89,131.87,0.1]
[1765567713619,16.39221318,131.89,131.87,0.1]
[1765567713824,7.58226826,131.89,131.87,0.1]
[1765567714020,8.26175156,131.9,131.87,12.46231084]
[1765567714319,7.58175156,131.9,131.87,12.46231084]
[1765567714910,7.58175156,131.9,131.87,11.75231084]
[1765567715109,7.58175156,131.9,131.87,12.46231084]
[1765567715706,7.58175156,131.9,131.87,9.11]
[1765567716725,17.07109655,131.91,131.87,20.0454806]
[1765567716922,0.68,131.9,131.87,8.4]
[1765567717116,0.68,131.9,131.87,9.11]
[1765567717304,35.34341252,131.91,131.87,9.11]
[1765567717623,7.58042866,131.92,131.88,4.06231084]
[1765567717809,7.58042866,131.92,131.89,0.71]
[1765567718224,28.4394878,131.93,131.89,0.71]
[1765567718225,16.38984285,131.93,131.89,0.71]
[1765567718425,16.38914758,131.94,131.91,3.35231084]
[1765567718610,16.38914758,131.94,131.91,11.65231084]
[1765567718814,16.38914758,131.94,131.91,12.36231084]
[1765567719411,16.38914758,131.94,131.91,9.01]
[1765567719934,107.65231084,131.96,131.92,5.94008048]
[1765567719935,8.80994492,131.96,131.92,5.94008048]
[1765567720133,16.38811074,131.96,131.92,5.94008048]
[1765567720462,14.0400254,131.94,131.87,0.1]
[1765567720726,8.80994492,131.91,131.88,0.71]
[1765567721104,9.48994492,131.91,131.87,9.11]
[1765567721727,8.80994492,131.91,131.87,9.11]
[1765567721927,0.68,131.9,131.87,8.4]
[1765567722231,9.48994492,131.91,131.87,9.11]
[1765567722433,7.58150113,131.9,131.87,9.11]
[1765567722813,7.58150113,131.9,131.87,8.4]
[1765567723140,13.0470912,131.95,131.89,5.23008048]
[1765567723451,26.61676084,131.94,131.89,5.23008048]
[1765567723743,16.38914758,131.94,131.9,0.71]
[1765567723918,17.06914758,131.94,131.91,8.3]
[1765567724247,8.80994492,131.93,131.91,8.3]
[1765567724414,16.39011184,131.93,131.91,8.3]
[1765567725837,7.58016692,131.93,131.91,8.3]
[1765567726718,9.48994492,131.94,131.91,8.3]
[1765567726719,17.06939114,131.94,131.91,8.3]
[1765567726919,16.38939114,131.94,131.91,9.01]
[1765567727316,16.38939114,131.94,131.92,0.71]
[1765567727532,7.57944622,131.94,131.92,0.71]
[1765567727758,7.57944622,131.94,131.91,8.3]
[1765567728041,7.57944622,131.94,131.91,9.01]
[1765567728715,16.38939114,131.94,131.91,9.01]
[1765567729344,7.57944622,131.94,131.92,0.71]
[1765567729546,7.57869992,131.95,131.92,0.71]
[1765567730844,14.0400254,131.97,131.92,0.99432314]
[1765567731248,7.57690559,131.98,131.92,0.99432314]
[1765567731249,14.7000254,131.96,131.92,0.71]
[1765567731544,7.57862826,131.95,131.93,8.3]
[1765567732045,16.38799292,131.97,131.94,0.71]
[1765567732244,8.23704142,131.98,131.94,0.71]
[1765567732941,104.3,132.01,131.97,5.23008048]
[1765567733152,0.66,132.03,131.98,13.53008048]
[1765567733153,8.80994492,132.02,131.98,13.53008048]
[1765567733529,17.04476359,132.02,131.98,21.81692389]
[1765567733728,17.04476359,132.02,131.99,0.71]
[1765567734535,16.38476359,132.02,131.99,0.71]
[1765567734929,7.57404445,132.03,131.99,8.28619087]
[1765567735128,8.23404445,132.03,131.99,8.28619087]
[1765567735325,16.38354266,132.04,132.0,5.94008048]
[1765567735532,7.57359774,132.04,132.01,8.3]
[1765567735720,7.57359774,132.04,132.01,9.01]
[1765567735920,8.23359774,132.04,132.01,9.01]
[1765567736147,16.38297441,132.05,132.02,0.71]
[1765567736355,17.04297441,132.05,132.01,8.3]
[1765567736560,17.04297441,132.05,132.01,9.01]
[1765567737641,16.38297441,132.05,132.02,0.71]
[1765567738228,16.38297441,132.05,132.02,13.18009106]
[1765567738554,7.57302949,132.05,132.02,13.18009106]
[1765567738752,8.23192483,132.07,132.03,0.71]
[1765567739050,8.23192483,132.07,132.04,8.3]
[1765567739051,8.80994492,132.06,132.04,8.3]
[1765567739253,9.46994492,132.06,132.04,8.3]
[1765567739431,0.66,132.05,132.04,8.3]
[1765567740531,13.13009106,132.05,132.0,0.28432314]
[1765567740843,16.38388006,132.04,132.01,8.3]
[1765567741049,17.04388006,132.04,132.01,8.3]
[1765567742152,0.66,132.03,132.01,8.3]
[1765567742539,16.38388006,132.04,132.01,8.3]
[1765567742739,17.04388006,132.04,132.01,8.3]
[1765567743757,17.04388006,132.04,132.02,8.3]
[1765567744129,0.66,132.03,132.02,8.3]
[1765567744335,17.04388006,132.04,132.02,8.3]
[1765567747946,0.66,132.06,132.03,12.47009106]
[1765567748146,104.3,132.07,132.05,12.47009106]
[1765567748366,0.66,132.09,132.05,20.77009106]
[1765567748543,8.80994492,132.08,132.05,8.3]
[1765567748867,0.66,132.09,132.05,21.48009106]
[1765567749166,8.23117881,132.08,132.05,21.48009106]
[1765567749663,8.23117881,132.08,132.05,21.47367263]
[1765567750758,7.57117881,132.08,132.06,0.71]
[1765567751142,7.57117881,132.08,132.05,20.76367263]
[1765567751337,7.57117881,132.08,132.05,21.47367263]
[1765567753470,7.57025638,132.1,132.06,12.46367263]
[1765567753782,117.3470912,132.11,132.08,12.46367263]
[1765567753783,120.67953392,132.11,132.08,12.46367263]
[1765567753946,9.46994492,132.1,132.08,8.3]
[1765567754150,21.27361755,132.09,132.08,8.3]
[1765567754350,21.93361755,132.09,132.08,8.3]
[1765567755149,9.46994492,132.09,132.08,8.3]
[1765567755666,17.04054072,132.09,132.08,8.3]
[1765567756904,9.46994492,132.09,132.08,8.3]
[1765567757049,8.80994492,132.09,132.08,8.3]
[1765567757386,17.04054072,132.09,132.08,8.3]
[1765567762878,104.3,132.11,132.08,8.3]
[1765567763082,9.51994492,132.1,132.08,8.3]
[1765567763786,0.71,132.09,132.08,8.3]
[1765567765284,8.2805958,132.09,132.08,8.3]
[1765567765583,0.71,132.09,132.08,8.3]
[1765567767083,8.2805958,132.09,132.08,8.3]
[1765567767454,17.09054072,132.09,132.08,8.3]
[1765567767654,126.61053093,132.09,132.08,8.3]
[1765567767864,8.80994492,132.08,132.06,8.3]
[1765567768190,8.80994492,132.07,132.03,14.21999021]
[1765567768372,9.51994492,132.07,132.04,0.7]
[1765567768768,17.09185328,132.07,132.04,5.91999021]
[1765567769485,17.09185328,132.07,132.04,0.7]
[1765567770483,7.57233172,132.06,132.03,9.0]
[1765567770664,8.28233172,132.06,132.03,9.0]
[1765567771069,7.57233172,132.06,132.04,0.7]
[1765567775077,12.58413135,132.06,132.04,0.7]
[1765567775280,7.57233172,132.06,132.04,0.7]
[1765567776874,7.57233172,132.06,132.03,8.3]
[1765567777065,14.02993513,132.04,132.02,8.3]
[1765567777482,8.80994492,132.04,132.02,8.3]
[1765567777671,8.80994492,132.04,132.02,9.0]
[1765567778382,8.80994492,132.04,132.02,8.3]
[1765567778786,9.51994492,132.04,132.02,8.3]
[1765567778970,7.5740362,132.03,132.02,8.3]
[1765567780170,111.87300825,132.05,132.02,12.34288615]
[1765567780377,111.87300825,132.05,132.03,4.04288615]
[1765567781187,111.87300825,132.05,132.03,0.7]
[1765567782384,112.58300825,132.05,132.02,8.3]
[1765567782575,112.58300825,132.05,132.02,9.0]
[1765567783491,111.87300825,132.05,132.02,9.0]
[1765567783898,111.87300825,132.05,132.02,12.34288615]
[1765567785194,111.87300825,132.05,132.03,4.04288615]
[1765567786088,111.87300825,132.05,132.02,8.3]
[1765567786290,9.51994492,132.04,132.01,8.3]
[1765567786897,0.71,132.03,132.01,8.3]
[1765567787494,8.28460703,132.03,132.01,8.3]
[1765567788095,7.57460703,132.03,132.01,8.3]
[1765567788598,8.28460703,132.03,132.01,8.3]
[1765567789197,7.57460703,132.03,132.01,8.3]
[1765567789385,7.57460703,132.03,132.01,11.64388521]
[1765567789573,7.57460703,132.03,132.01,8.3]
[1765567790401,8.28460703,132.03,132.01,8.3]
[1765567791082,7.57460703,132.03,132.01,8.3]
[1765567791287,8.24460703,132.03,132.01,8.3]
[1765567791596,7.57460703,132.03,132.01,12.35388521]
[1765567792786,17.05359429,132.04,132.01,12.35388521]
[1765567794597,16.38359429,132.04,132.01,11.64388521]
[1765567794799,8.24284363,132.06,132.02,4.05388521]
[1765567795095,12.59214991,132.06,132.03,3.34388521]
[1765567795304,12.59214991,132.06,132.04,8.3]
[1765567795800,13.26214991,132.06,132.04,8.3]
[1765567796388,8.24284363,132.06,132.04,8.3]
[1765567799186,0.67,132.05,132.04,8.3]
[1765567800182,12.59442208,132.06,132.04,8.3]
[1765567800403,7.57284363,132.06,132.04,8.3]
[1765567800583,8.24284363,132.06,132.04,8.3]
[1765567800786,16.38191929,132.07,132.04,9.01]
[1765567800988,5.69341394,132.06,132.04,8.3]
[1765567801382,13.26579798,132.06,132.04,8.3]
[1765567802285,16.3818957,132.07,132.04,8.3]
[1765567802486,18.92436448,132.11,132.06,3.34388521]
[1765567802689,8.80994492,132.1,132.09,3.34388521]
[1765567803214,9.00994492,132.12,132.09,3.34388521]
[1765567803506,0.2,132.12,132.11,3.34388521]
[1765567803908,0.2,132.12,132.11,4.05388521]
[1765567804296,0.2,132.12,132.11,3.34388521]
[1765567804502,0.2,132.12,132.11,4.05388521]
[1765567805702,0.2,132.12,132.11,0.71]
[1765567805914,0.2,132.12,132.11,4.05388521]
[1765567806414,0.2,132.12,132.11,11.62333491]
[1765567806618,0.2,132.12,132.11,11.90765805]
[1765567808219,0.87,132.12,132.11,8.3]
[1765567808393,8.43901087,132.12,132.11,8.3]
[1765567809218,0.87,132.12,132.11,8.3]
[1765567809422,8.43887677,132.12,132.11,8.3]
[1765567809604,17.24882169,132.12,132.11,8.3]
[1765567810806,8.80994492,132.11,132.06,7.85656515]
[1765567811112,3.34388521,132.1,132.07,8.3]
[1765567811415,11.58438267,132.1,132.07,8.3]
[1765567811607,0.67,132.09,132.07,8.3]
[1765567812406,10.91438267,132.1,132.07,8.3]
[1765567812611,0.67,132.09,132.07,8.3]
[1765567813516,8.80994492,132.07,132.02,7.5743859]
[1765567813713,8.80994492,132.07,132.01,4.05388521]
[1765567813714,3.34388521,132.06,132.03,8.3]
[1765567813916,3.34388521,132.05,132.03,8.3]
[1765567814226,4.01388521,132.05,132.03,8.3]
[1765567814407,0.67,132.04,132.03,8.3]
[1765567815503,8.24346258,132.04,132.03,8.3]
[1765567816427,10.91692542,132.05,132.03,8.3]
[1765567816621,0.67,132.04,132.03,8.3]
[1765567817530,8.24346258,132.04,132.03,8.3]
[1765567817912,20.39729271,132.04,132.03,8.3]
[1765567819222,8.80994492,132.05,132.03,8.3]
[1765567819532,9.47994492,132.05,132.03,8.3]
[1765567819710,0.67,132.04,132.03,8.3]
[1765567820108,8.80994492,132.05,132.03,8.3]
[1765567820324,8.28346258,132.04,132.03,8.3]
[1765567821109,11.62734779,132.04,132.03,8.3]
[1765567821831,20.43729271,132.04,132.03,8.3]
[1765567823226,17.0934075,132.04,132.03,8.3]
[1765567823425,20.43729271,132.04,132.03,8.3]
[1765567826132,20.43723201,132.04,132.03,8.3]
[1765567826340,8.80994492,132.05,132.03,8.98]
[1765567826523,9.51994492,132.05,132.03,8.3]
[1765567828214,17.09330581,132.05,132.03,8.3]
[1765567829016,4.05382451,132.04,132.03,8.3]
[1765567829822,4.05382451,132.04,132.0,8.3]
[1765567830038,4.05382451,132.03,132.0,8.98]
[1765567830236,8.28432626,132.03,132.0,8.98]
[1765567830426,7.57432626,132.03,132.0,15.87572964]
[1765567830634,7.57432626,132.03,132.01,0.68]
[1765567831233,7.5734919,132.04,132.01,0.68]
[1765567831439,16.38343682,132.04,132.01,0.68]
[1765567832226,17.09343682,132.04,132.01,0.68]
[1765567834541,9.51994492,132.03,132.0,8.3]
[1765567834845,12.86376943,132.03,132.0,8.98]
[1765567835042,9.51994492,132.03,132.0,8.98]
[1765567835527,17.09432889,132.03,132.0,8.98]
[1765567835722,20.4381534,132.03,132.0,8.98]
[1765567835922,17.09432889,132.03,132.0,8.98]
[1765567837137,17.09432889,132.03,132.0,12.32382451]
[1765567837336,17.09432889,132.03,132.0,8.98]
[1765567837920,8.80994492,132.08,132.02,3.34382451]
[1765567838127,0.71,132.11,132.07,3.34382451]
[1765567838342,0.71,132.11,132.07,11.64382451]
[1765567838538,4.05382451,132.11,132.07,8.3]
[1765567838748,8.80994492,132.1,132.07,8.98]
[1765567839052,9.51994492,132.1,132.07,8.98]
[1765567839239,17.09030974,132.1,132.07,8.98]
[1765567839442,17.09030974,132.1,132.07,12.32382451]
[1765567840544,8.80994492,132.08,132.07,8.3]
[1765567840747,8.28036482,132.1,132.07,8.98]
[1765567840937,8.28036482,132.1,132.07,12.32382451]
[1765567842153,8.28036482,132.1,132.07,14.19826857]
[1765567842661,8.28036482,132.1,132.07,13.51826857]
[1765567842950,0.71,132.09,132.07,8.3]
[1765567843329,7.57036482,132.1,132.07,8.3]
[1765567843551,8.28036482,132.1,132.07,8.3]
[1765567843756,14.02821349,132.08,132.02,7.57440932]
[1765567844052,13.0470912,132.06,132.03,5.89826857]
[1765567844232,8.80994492,132.06,132.04,0.68]
[1765567844634,13.0470912,132.07,132.04,0.68]
[1765567844933,8.28193496,132.07,132.04,0.68]
[1765567845335,7.57193496,132.07,132.04,0.68]
[1765567845540,8.28193496,132.07,132.04,0.68]
[1765567846339,9.51994492,132.06,132.02,8.3]
[1765567846544,14.73821349,132.06,132.02,8.98]
[1765567846744,0.71,132.05,132.02,8.98]
[1765567846958,7.57346258,132.04,132.02,8.98]
[1765567848157,7.57312606,132.05,132.02,8.98]
[1765567848953,7.57312606,132.05,132.02,8.3]
[1765567849160,7.57312606,132.05,132.03,0.68]
[1765567849463,7.57312606,132.05,132.02,14.19826857]
[1765567850850,7.57312606,132.05,132.02,8.98]
[1765567853844,17.09249772,132.06,132.03,0.67]
[1765567855163,8.80994492,132.07,132.04,5.21826857]
[1765567855367,13.8368683,132.07,132.05,8.3]
[1765567855863,104.3,132.09,132.06,5.88826857]
[1765567856070,9.52994492,132.09,132.06,5.88826857]
[1765567856371,9.52994492,132.09,132.06,0.67]
[1765567857069,17.10076246,132.09,132.05,21.76097285]
[1765567858054,17.10076246,132.09,132.06,0.67]
[1765567858458,16.38076246,132.09,132.06,0.67]
[1765567858677,17.10076246,132.09,132.06,0.67]
[1765567860076,8.80994492,132.09,132.06,13.46055927]
[1765567860277,22.12895483,132.09,132.06,0.67]
[1765567860472,17.10059492,132.09,132.06,0.67]
[1765567861257,5.93826857,132.08,132.05,8.3]
[1765567861484,5.93826857,132.08,132.01,7.5750233]
[1765567861485,5.21826857,132.06,132.01,7.5750233]
[1765567861783,5.21826857,132.06,131.99,7.57624096]
[1765567861784,8.80994492,132.04,131.99,7.57624096]
[1765567861957,5.21826857,132.03,132.0,8.3]
[1765567862158,8.3,132.07,132.0,8.3]
[1765567862159,5.21826857,132.02,132.0,8.3]
[1765567862561,0.72,132.02,132.0,8.3]
[1765567862955,14.02821349,132.03,132.0,8.3]
[1765567863161,14.74821349,132.03,132.0,8.3]
[1765567863371,22.32244801,132.03,132.0,8.3]
[1765567864087,22.32924269,132.03,132.0,8.3]
[1765567864755,9.52994492,132.02,132.0,8.3]
[1765567865160,0.72,132.01,132.0,8.3]
[1765567865484,9.52994492,132.02,132.0,8.3]
[1765567865679,8.80994492,132.02,132.0,14.19506325]
[1765567865898,8.80994492,132.02,132.0,13.52506325]
[1765567866571,8.29423452,132.03,132.01,5.22506325]
[1765567866572,7.57423452,132.03,132.01,5.22506325]
[1765567866883,16.3835719,132.04,132.01,5.89506325]
[1765567867084,6.27197234,132.08,132.03,5.22506325]
[1765567867264,5.73887358,132.07,132.03,13.52506325]
[1765567867470,8.80994492,132.05,132.03,13.52506325]
[1765567868069,16.38309993,132.05,132.03,13.52506325]
[1765567869766,17.10309993,132.05,132.03,13.52506325]
[1765567871881,16.38309993,132.05,132.03,13.52506325]
[1765567872081,8.80994492,132.05,132.04,5.22506325]
[1765567872382,104.3,132.06,132.04,0.67]
[1765567872692,104.3,132.06,132.05,5.89506325]
[1765567873065,104.3,132.1,132.05,5.89506325]
[1765567873262,104.3,132.1,132.04,7.57324807]
[1765567873263,0.72,132.1,132.08,5.22506325]
[1765567873464,27.73423276,132.11,132.08,5.22506325]
[1765567873465,7.56959589,132.11,132.09,13.52506325]
[1765567873677,8.48911533,132.12,132.1,5.22506325]
[1765567873867,8.80994492,132.11,132.1,5.22506325]
[1765567874072,0.2,132.12,132.1,5.89506325]
[1765567874282,0.2,132.12,132.11,5.89506325]
[1765567874483,0.2,132.12,132.11,13.46451295]
[1765567874782,0.2,132.12,132.11,13.74883609]
[1765567874974,0.2,132.12,132.11,26.79592729]
[1765567880379,0.2,132.17,132.12,0.28432314]
[1765567880576,0.2,132.17,132.16,5.22506325]
[1765567880778,0.2,132.17,132.16,13.52506325]
[1765567881391,8.80994492,132.16,132.11,8.2394497]
[1765567881589,8.80994492,132.16,132.13,5.22506325]
[1765567881797,17.09673386,132.16,132.13,5.22506325]
[1765567882096,0.72,132.15,132.12,13.52506325]
[1765567882288,0.72,132.15,132.12,14.19506325]
[1765567882489,16.37673386,132.16,132.13,5.22506325]
[1765567882691,17.09673386,132.16,132.13,5.22506325]
[1765567883297,0.72,132.15,132.12,8.3]
[1765567883877,7.56773119,132.14,132.12,8.3]
[1765567884084,8.28732516,132.15,132.11,20.02183656]
[1765567884292,0.72,132.14,132.12,8.3]
[1765567886567,8.28802667,132.14,132.12,8.3]
[1765567889089,7.56732195,132.15,132.12,20.75242889]
[1765567889292,7.56732195,132.15,132.12,21.42242889]
[1765567889882,7.56732195,132.15,132.13,13.12242889]
[1765567890106,120.67675914,132.16,132.13,13.12242889]
[1765567890309,121.39675914,132.16,132.13,12.45242889]
[1765567890603,121.39675914,132.16,132.12,21.42242889]
[1765567890604,0.72,132.15,132.12,21.42242889]
[1765567891005,120.67675914,132.16,132.12,8.97]
[1765567891192,0.72,132.15,132.12,21.42242889]
[1765567891701,120.67675914,132.16,132.12,21.42242889]
[1765567891882,121.39675914,132.16,132.12,21.42242889]
[1765567893507,8.28750331,132.15,132.12,8.97]
[1765567893686,8.28750331,132.15,132.12,8.3]
[1765567893884,0.72,132.14,132.12,20.75242889]
[1765567894584,8.28750331,132.15,132.12,20.75242889]
[1765567894779,8.28750331,132.15,132.12,8.3]
[1765567896686,8.28750331,132.15,132.12,20.75242889]
[1765567897208,7.56750331,132.15,132.13,0.67]
[1765567897393,120.67666984,132.16,132.13,0.67]
[1765567897594,120.67666984,132.16,132.13,13.12242889]
[1765567897986,121.39666984,132.16,132.13,13.12242889]
[1765567898803,113.10994492,132.16,132.14,0.67]
[1765567899105,7.56830394,132.13,132.11,8.28]
[1765567899620,8.28830394,132.13,132.11,8.28]
[1765567900606,7.56830394,132.13,132.11,8.28]
[1765567900809,8.28830394,132.13,132.11,8.28]
[1765567901403,7.56830394,132.13,132.11,8.28]
[1765567901608,9.52994492,132.15,132.11,20.73242889]
[1765567901809,9.52994492,132.15,132.12,0.67]
[1765567902103,17.09722089,132.15,132.12,0.67]
[1765567902291,17.09722089,132.15,132.11,28.97179546]
[1765567902497,17.09722089,132.15,132.11,28.97069425]
[1765567903911,17.09722089,132.15,132.11,24.18170731]
[1765567905503,17.09722089,132.15,132.11,16.61234074]
[1765567905912,17.09722089,132.15,132.11,12.28752764]
[1765567906112,17.09722089,132.15,132.12,3.33752764]
[1765567906814,17.09722089,132.15,132.12,4.00752764]
[1765567910914,0.68,132.14,132.12,3.33752764]
[1765567911484,7.56830394,132.13,132.12,3.33752764]
[1765567911690,7.56830394,132.13,132.09,18.92514472]
[1765567911691,8.80994492,132.12,132.07,7.57132322]
[1765567911903,9.48994492,132.12,132.08,11.61752764]
[1765567912091,8.80994492,132.1,132.09,8.28]
[1765567912493,0.68,132.1,132.06,8.28]
[1765567912694,12.14747256,132.11,132.06,8.28]
[1765567912695,0.68,132.09,132.06,8.28]
[1765567912901,0.68,132.09,132.06,11.61752764]
[1765567913506,8.25106555,132.09,132.06,11.61752764]
[1765567913807,8.25106555,132.09,132.07,3.33752764]
[1765567915196,8.25106555,132.09,132.06,11.61752764]
[1765567915892,8.25106555,132.09,132.06,8.28]
[1765567916692,8.25106555,132.09,132.06,11.61752764]
[1765567917202,12.14747256,132.11,132.07,0.69]
[1765567917203,16.3798776,132.11,132.07,0.69]
[1765567917404,16.3798776,132.11,132.08,3.33752764]
[1765567917716,7.56993268,132.11,132.09,11.63752764]
[1765567918016,7.56993268,132.11,132.09,12.32752764]
[1765567918601,38.20034181,132.15,132.1,3.33752764]
[1765567918803,38.20034181,132.15,132.11,3.33752764]
[1765567918804,5.02533734,132.14,132.11,3.33752764]
[1765567918998,5.02533734,132.13,132.11,3.33752764]
[1765567919195,0.68,132.14,132.11,3.33752764]
[1765567919395,5.02536914,132.13,132.12,11.63752764]
[1765567919714,8.24773119,132.14,132.12,11.63752764]
[1765567920511,8.24773119,132.14,132.12,8.3]
[1765567920907,17.85408394,132.13,132.12,8.3]
[1765567921109,14.5165563,132.13,132.09,8.3]
[1765567921318,0.68,132.12,132.09,8.3]
[1765567922113,8.24924043,132.12,132.09,8.3]
[1765567923418,7.56818728,132.14,132.1,4.02752764]
[1765567923724,12.59302664,132.14,132.11,3.33752764]
[1765567923908,13.27302664,132.14,132.12,8.3]
[1765567924305,8.24818728,132.14,132.12,8.3]
[1765567925026,0.68,132.13,132.12,8.3]
[1765567925814,9.48994492,132.13,132.12,8.3]
[1765567926014,8.80994492,132.12,132.09,8.3]
[1765567926217,8.80994492,132.1,132.09,8.3]
[1765567926420,12.14747256,132.1,132.09,8.3]
[1765567926603,17.85406803,132.1,132.05,8.3]
[1765567926803,16.3811139,132.08,132.05,8.3]
[1765567927210,17.0611139,132.08,132.05,8.3]
[1765567927637,17.0611139,132.08,132.05,8.99]
[1765567927960,16.3811139,132.08,132.05,8.99]
[1765567930630,0.68,132.07,132.05,8.3]
[1765567930826,16.3811139,132.08,132.05,8.3]
[1765567931008,17.0611139,132.08,132.05,8.3]
[1765567932606,17.0611139,132.08,132.05,8.99]
[1765567932943,8.25080819,132.09,132.05,24.23334569]
[1765567933140,13.2647314,132.09,132.05,15.97057358]
[1765567933342,9.48994492,132.08,132.05,8.3]
[1765567933841,8.80994492,132.08,132.06,0.69]
[1765567934425,7.57080819,132.09,132.06,0.69]
[1765567934731,8.25080819,132.09,132.06,0.69]
[1765567934941,8.80994492,132.1,132.06,15.9328545]
[1765567934942,16.38009169,132.1,132.06,15.9328545]
[1765567935232,17.06009169,132.1,132.06,15.9328545]
[1765567935417,0.68,132.09,132.06,8.26228092]
[1765567935618,0.68,132.09,132.06,15.9328545]
[1765567936209,0.68,132.09,132.06,8.26228092]
[1765567936706,16.4805185,132.08,132.03,0.28432314]
[1765567936925,9.48994492,132.08,132.04,8.99]
[1765567937429,9.48994492,132.08,132.04,8.3]
[1765567937430,0.68,132.07,132.04,8.3]
[1765567937638,8.80994492,132.08,132.04,8.99]
[1765567937940,9.48994492,132.08,132.04,8.99]
[1765567938114,17.0616828,132.08,132.04,8.99]
[1765567938733,17.0616828,132.08,132.04,16.66057358]
[1765567938933,16.3816828,132.08,132.04,8.99]
[1765567939245,16.3816828,132.08,132.03,8.3]
[1765567939246,16.4805185,132.06,132.03,8.3]
[1765567939620,0.71,132.05,132.03,8.3]
[1765567939932,8.80994492,132.06,132.03,16.58395654]
[1765567940140,0.71,132.06,132.03,16.58395654]
[1765567940536,0.7,132.05,132.03,8.3]
[1765567940734,0.7,132.06,132.03,8.3]
[1765567941040,16.48351446,132.07,132.03,8.98]
[1765567941041,9.50994492,132.07,132.03,8.98]
[1765567941243,0.7,132.06,132.03,8.98]
[1765567942129,0.7,132.06,132.03,16.55370412]
[1765567942329,0.7,132.06,132.03,15.87370412]
[1765567942531,8.27234906,132.06,132.03,8.3]
[1765567942963,8.27234906,132.06,132.03,8.98]
[1765567943327,16.38193432,132.07,132.03,24.22748719]
[1765567943519,17.08193432,132.07,132.04,0.68]
[1765567944122,16.38193432,132.07,132.04,8.35356954]
[1765567944321,17.08193432,132.07,132.04,8.35356954]
[1765567944625,0.7,132.06,132.03,8.3]
[1765567944839,0.7,132.06,132.03,8.98]
[1765567945439,104.3,132.07,132.04,15.92688117]
[1765567945650,28.43695708,132.09,132.06,7.67356954]
[1765567945651,8.2706469,132.09,132.06,7.67356954]
[1765567945852,111.87024483,132.1,132.07,8.3]
[1765567946156,112.57024483,132.1,132.07,8.98]